bitfinex/quotes_SOLUSD_20250106
["timestamp","ask_amount","ask_price","bid_price","bid_amount"]
[1736145384328,15.23329153,215.14,215.08,9.2007928]
[1736145384596,15.23329153,215.14,215.09,9.2007928]
[1736145388091,15.23329153,215.14,215.1,9.2007928]
[1736145389579,15.23329153,215.14,215.11,9.2007928]
[1736145389784,15.23329153,215.14,215.07,1.5873]
[1736145389785,15.23329153,215.14,215.12,9.2007928]
[1736145394329,15.23329153,215.14,215.13,9.2007928]
[1736145396310,29.2007928,215.21,215.13,9.2007928]
[1736145396507,29.2007928,215.21,215.14,9.2007928]
[1736145397594,9.2007928,215.2,215.14,9.2007928]
[1736145397813,9.2007928,215.2,215.13,9.2007928]
[1736145398501,9.2007928,215.2,215.14,9.2007928]
[1736145399119,9.2007928,215.2,215.13,9.2007928]
[1736145404237,9.2007928,215.2,215.09,20.0]
[1736145404528,9.2007928,215.18,215.11,9.2007928]
[1736145405333,9.2007928,215.17,215.1,9.2007928]
[1736145405699,9.2007928,215.18,215.11,9.2007928]
[1736145406532,9.2007928,215.17,215.1,9.2007928]
[1736145407611,9.2007928,215.14,215.08,9.2007928]
[1736145409031,9.2007928,215.14,215.07,9.2007928]
[1736145411903,9.2007928,215.16,215.09,9.2007928]
[1736145413346,17.1414928,215.17,215.1,9.2007928]
[1736145413506,17.1414928,215.17,215.11,9.2007928]
[1736145414442,7.9407,215.17,215.11,9.2007928]
[1736145414737,17.1414928,215.17,215.1,9.2007928]
[1736145416320,7.9407,215.17,215.1,9.2007928]
[1736145417546,7.9407,215.17,215.11,9.2007928]
[1736145418629,1.59,215.17,215.11,9.2007928]
[1736145418829,29.2007928,215.19,215.12,9.2007928]
[1736145420247,6.4566,215.22,215.16,9.2007928]
[1736145420746,6.4566,215.22,215.17,9.2007928]
[1736145420945,1.6006,215.23,215.18,9.2007928]
[1736145421123,16.45553575,215.26,215.19,9.2007928]
[1736145421450,20.0,215.23,215.18,9.2007928]
[1736145421948,20.0,215.23,215.19,9.2007928]
[1736145422843,19.4945,215.28,215.19,9.2007928]
[1736145423052,29.2007928,215.25,215.19,9.2007928]
[1736145423923,20.0,215.25,215.2,9.2007928]
[1736145424123,9.2007928,215.26,215.2,9.2007928]
[1736145424320,7.25474295,215.31,215.22,9.2007928]
[1736145424536,9.2007928,215.31,215.24,9.2007928]
[1736145424826,9.2007928,215.28,215.22,9.2007928]
[1736145425140,9.2007928,215.27,215.21,9.2007928]
[1736145425350,9.2007928,215.28,215.22,9.2007928]
[1736145425960,23.776884,215.32,215.22,9.2007928]
[1736145426126,29.2007928,215.29,215.22,9.2007928]
[1736145427623,9.2007928,215.27,215.16,0.69700254]
[1736145427822,9.2007928,215.26,215.2,9.2007928]
[1736145428051,9.2007928,215.26,215.19,9.2007928]
[1736145428450,9.2007928,215.27,215.2,9.2007928]
[1736145428625,9.2007928,215.26,215.19,9.2007928]
[1736145428954,9.2007928,215.25,215.18,9.2007928]
[1736145429142,9.2007928,215.22,215.14,1.6051]
[1736145429340,9.2007928,215.21,215.15,11.2607928]
[1736145430147,9.2007928,215.21,215.15,2.06]
[1736145431455,9.2007928,215.22,215.15,11.2607928]
[1736145432728,9.2007928,215.18,215.09,1.5551]
[1736145433059,9.2007928,215.16,215.1,9.2007928]
[1736145433220,9.2007928,215.16,215.09,12.8158928]
[1736145433558,9.2007928,215.16,215.1,9.2007928]
[1736145434853,9.2007928,215.15,215.09,2.06]
[1736145436752,9.2007928,215.14,215.08,2.06]
[1736145437633,9.2007928,215.13,215.08,2.06]
[1736145439161,9.2007928,215.1,214.95,1.5832]
[1736145439376,9.2007928,215.1,215.03,9.2007928]
[1736145439656,29.2007928,215.11,215.04,9.2007928]
[1736145439848,20.0,215.1,215.06,9.2007928]
[1736145440056,23.776884,215.13,215.07,9.2007928]
[1736145440860,9.2007928,215.14,215.07,9.2007928]
[1736145441065,29.2007928,215.15,215.08,9.2007928]
[1736145441380,20.0,215.13,215.09,9.2007928]
[1736145441679,23.776884,215.15,215.09,9.2007928]
[1736145441855,9.2007928,215.15,215.09,9.2007928]
[1736145442182,9.2007928,215.12,215.03,1.6155]
[1736145442475,9.2007928,215.12,215.06,9.2007928]
[1736145442979,9.2007928,215.13,215.06,9.2007928]
[1736145443183,29.2007928,215.14,215.07,9.2007928]
[1736145443353,29.2007928,215.14,215.08,9.2007928]
[1736145445149,20.0,215.14,215.09,9.2007928]
[1736145446370,29.2007928,215.14,215.07,9.2007928]
[1736145446981,29.2007928,215.14,215.03,1.6155]
[1736145447172,9.2007928,215.13,215.06,9.2007928]
[1736145448175,29.2007928,215.14,215.07,9.2007928]
[1736145448780,20.0,215.14,215.09,9.2007928]
[1736145449077,20.0,215.14,215.1,9.2007928]
[1736145449382,9.2007928,215.17,215.03,13.9389815]
[1736145449383,9.2007928,215.18,215.11,9.2007928]
[1736145450768,9.2007928,215.17,215.1,9.2007928]
[1736145451168,9.2007928,215.15,215.08,9.2007928]
[1736145451362,9.2007928,215.14,215.06,2.06]
[1736145451562,9.2007928,215.13,215.06,11.2607928]
[1736145451978,9.2007928,215.14,215.07,9.2007928]
[1736145452286,29.2007928,215.15,215.08,9.2007928]
[1736145453783,9.2007928,215.17,215.1,9.2007928]
[1736145454256,9.2007928,215.16,215.09,9.2007928]
[1736145454788,9.2007928,215.17,215.1,9.2007928]
[1736145454985,9.2007928,215.16,215.09,9.2007928]
[1736145455786,9.2007928,215.16,215.08,9.2007928]
[1736145455961,9.2007928,215.16,215.09,9.2007928]
[1736145457189,11.6155,215.23,215.11,9.2007928]
[1736145457375,9.2007928,215.19,215.11,9.2007928]
[1736145457682,9.2007928,215.17,215.06,2.06]
[1736145457872,9.2007928,215.16,215.09,9.2007928]
[1736145460085,9.2007928,215.16,215.08,9.2007928]
[1736145460677,9.2007928,215.15,215.07,9.2007928]
[1736145461294,9.2007928,215.14,215.07,9.2007928]
[1736145461673,9.2007928,215.15,215.08,9.2007928]
[1736145461894,29.2007928,215.16,215.08,9.2007928]
[1736145462185,9.2007928,215.15,215.08,9.2007928]
[1736145462399,29.2007928,215.16,215.08,9.2007928]
[1736145462994,9.2007928,215.17,215.1,9.2007928]
[1736145463297,9.2007928,215.18,215.11,9.2007928]
[1736145463456,9.2007928,215.17,215.1,9.2007928]
[1736145463660,20.0,215.21,215.13,9.2007928]
[1736145463893,9.2007928,215.2,215.13,9.2007928]
[1736145464281,17.6706,215.24,215.13,9.2007928]
[1736145464478,9.2007928,215.21,215.13,9.2007928]
[1736145465499,9.2007928,215.2,215.13,9.2007928]
[1736145466100,9.2007928,215.19,215.12,9.2007928]
[1736145466464,9.2007928,215.2,215.13,9.2007928]
[1736145468493,29.2007928,215.21,215.14,9.2007928]
[1736145468999,9.2007928,215.2,215.12,9.2007928]
[1736145469171,20.0,215.21,215.12,9.2007928]
[1736145469372,9.2007928,215.2,215.13,9.2007928]
[1736145469573,9.2007928,215.2,215.1,1.6176]
[1736145469867,9.2007928,215.19,215.11,9.2007928]
[1736145470468,9.2007928,215.18,215.11,9.2007928]
[1736145470970,9.2007928,215.17,215.1,10.8183928]
[1736145471184,9.2007928,215.17,215.1,1.6176]
[1736145471387,9.2007928,215.16,215.1,1.6176]
[1736145472397,23.776884,215.19,215.07,9.2007928]
[1736145472398,9.2007928,215.14,215.07,9.2007928]
[1736145474096,9.2007928,215.14,215.05,2.06]
[1736145474097,9.2007928,215.13,215.06,9.2007928]
[1736145474277,23.776884,215.19,215.04,1.5728]
[1736145474278,9.2007928,215.12,215.04,1.5728]
[1736145474481,9.2007928,215.12,215.05,9.2007928]
[1736145474787,29.2007928,215.14,215.07,9.2007928]
[1736145478206,9.2007928,215.13,215.06,9.2007928]
[1736145478699,9.2007928,215.13,215.04,1.5728]
[1736145478874,20.0,215.15,215.07,9.2007928]
[1736145479080,9.2007928,215.14,215.07,9.2007928]
[1736145480704,20.0,215.15,215.07,9.2007928]
[1736145480891,29.2007928,215.15,215.07,9.2007928]
[1736145481083,29.2007928,215.15,215.08,9.2007928]
[1736145481293,20.0,215.15,215.09,9.2007928]
[1736145481690,20.0,215.15,215.08,9.2007928]
[1736145484695,9.2007928,215.16,215.08,9.2007928]
[1736145489437,23.776884,215.17,215.08,9.2007928]
[1736145489911,23.776884,215.17,215.1,9.2007928]
[1736145490212,9.2007928,215.18,215.1,9.2007928]
[1736145492017,11.6165,215.22,215.12,9.2007928]
[1736145492325,7.25474295,215.24,215.17,9.2007928]
[1736145492488,7.25474295,215.25,215.19,9.2007928]
[1736145492688,16.45553575,215.25,215.17,9.2007928]
[1736145493134,9.2007928,215.25,215.17,9.2007928]
[1736145493341,7.25474295,215.28,215.16,9.2007928]
[1736145493342,9.2007928,215.23,215.16,9.2007928]
[1736145493631,9.2007928,215.23,215.1,3.5844]
[1736145493821,32.9776768,215.21,215.14,9.2007928]
[1736145494206,32.9776768,215.21,215.1,3.5844]
[1736145494427,32.9776768,215.21,215.13,9.2007928]
[1736145495020,9.2007928,215.2,215.13,9.2007928]
[1736145495219,9.2007928,215.21,215.14,9.2007928]
[1736145496413,43.776884,215.21,215.15,9.2007928]
[1736145497307,20.0,215.21,215.15,9.2007928]
[1736145498326,29.2007928,215.21,215.13,9.2007928]
[1736145500436,29.2007928,215.21,215.14,9.2007928]
[1736145500603,43.776884,215.21,215.14,9.2007928]
[1736145500928,20.0,215.21,215.14,9.2007928]
[1736145501137,29.2007928,215.21,215.14,9.2007928]
[1736145502334,9.2007928,215.2,215.12,9.2007928]
[1736145502702,9.2007928,215.2,215.13,9.2007928]
[1736145503332,29.2007928,215.21,215.14,9.2007928]
[1736145503930,20.0,215.21,215.14,9.2007928]
[1736145504109,43.776884,215.21,215.14,9.2007928]
[1736145509831,9.2007928,215.22,215.15,9.2007928]
[1736145510035,9.2007928,215.21,215.14,9.2007928]
[1736145511351,20.0,215.25,215.16,9.2007928]
[1736145511527,9.2007928,215.23,215.16,9.2007928]
[1736145512148,9.2007928,215.22,215.15,9.2007928]
[1736145514950,20.0,215.25,215.17,9.2007928]
[1736145515244,20.0,215.23,215.18,9.2007928]
[1736145517937,29.2007928,215.25,215.18,9.2007928]
[1736145518138,21.89229895,215.28,215.2,9.2007928]
[1736145518333,20.0,215.24,215.2,9.2007928]
[1736145519241,20.0,215.24,215.18,9.2007928]
[1736145523058,20.0,215.24,215.19,9.2007928]
[1736145525668,23.776884,215.27,215.2,9.2007928]
[1736145525669,32.9776768,215.27,215.2,9.2007928]
[1736145526869,9.2007928,215.27,215.2,9.2007928]
[1736145527073,12.69150615,215.28,215.22,9.2007928]
[1736145527248,12.69150615,215.28,215.25,9.2007928]
[1736145527982,12.69150615,215.28,215.24,9.2007928]
[1736145528344,12.69150615,215.28,215.23,9.2007928]
[1736145530274,12.69150615,215.28,215.17,13.86898774]
[1736145530453,12.69150615,215.28,215.26,9.2007928]
[1736145530661,12.69150615,215.28,215.17,13.86898774]
[1736145530662,12.69150615,215.28,215.25,9.2007928]
[1736145530871,12.69150615,215.28,215.24,9.2007928]
[1736145532784,12.69150615,215.28,215.18,0.69684537]
[1736145532961,12.69150615,215.28,215.22,9.2007928]
[1736145533668,12.69150615,215.28,215.23,9.2007928]
[1736145535081,12.69150615,215.28,215.24,9.2007928]
[1736145541970,9.2007928,215.27,215.21,2.06]
[1736145543067,12.69150615,215.28,215.21,2.06]
[1736145543273,12.69150615,215.28,215.22,9.2007928]
[1736145543800,12.69150615,215.28,215.21,11.2607928]
[1736145546402,12.69150615,215.28,215.23,9.2007928]
[1736145547775,12.69150615,215.28,215.21,11.2607928]
[1736145553110,12.69150615,215.28,215.23,9.2007928]
[1736145555306,12.69150615,215.28,215.21,2.06]
[1736145555504,12.69150615,215.28,215.23,9.2007928]
[1736145556708,12.69150615,215.28,215.24,9.2007928]
[1736145556887,12.69150615,215.28,215.25,9.2007928]
[1736145559103,12.69150615,215.28,215.26,9.2007928]
[1736145562227,9.2007928,215.32,215.25,9.2007928]
[1736145562514,9.2007928,215.32,215.26,9.2007928]
[1736145563116,23.776884,215.35,215.26,9.2007928]
[1736145563416,9.2007928,215.32,215.26,9.2007928]
[1736145564693,9.2007928,215.31,215.25,9.2007928]
[1736145565310,9.2007928,215.33,215.26,9.2007928]
[1736145566207,9.2007928,215.32,215.25,9.2007928]
[1736145567486,9.2007928,215.33,215.26,9.2007928]
[1736145568920,20.0,215.33,215.26,9.2007928]
[1736145569094,29.2007928,215.33,215.26,9.2007928]
[1736145569518,9.2007928,215.32,215.24,1.5304]
[1736145569722,9.2007928,215.32,215.24,10.7311928]
[1736145570109,8.0363,215.36,215.25,9.2007928]
[1736145570323,9.2007928,215.32,215.24,10.7311928]
[1736145570614,9.2007928,215.32,215.25,9.2007928]
[1736145570816,9.2007928,215.33,215.25,9.2007928]
[1736145574791,9.2007928,215.35,215.27,9.2007928]
[1736145577316,9.2007928,215.35,215.28,9.2007928]
[1736145580093,9.2007928,215.35,215.27,9.2007928]
[1736145580292,9.2007928,215.34,215.27,9.2007928]
[1736145582591,9.2007928,215.35,215.28,9.2007928]
[1736145582899,23.776884,215.39,215.28,9.2007928]
[1736145583106,29.2007928,215.36,215.29,9.2007928]
[1736145584533,9.2007928,215.35,215.28,9.2007928]
[1736145584933,20.0,215.36,215.3,9.2007928]
[1736145585229,7.25474295,215.42,215.32,9.2007928]
[1736145585400,9.2007928,215.4,215.33,9.2007928]
[1736145589416,20.0,215.41,215.33,9.2007928]
[1736145589599,9.2007928,215.4,215.33,9.2007928]
[1736145592814,9.2007928,215.34,215.27,2.06]
[1736145593129,9.2007928,215.34,215.27,9.2007928]
[1736145595233,9.2007928,215.34,215.28,9.2007928]
[1736145595831,9.2007928,215.36,215.3,9.2007928]
[1736145596141,9.2007928,215.36,215.29,9.2007928]
[1736145596745,23.776884,215.4,215.31,9.2007928]
[1736145596911,32.9776768,215.4,215.33,9.2007928]
[1736145597108,9.2007928,215.4,215.33,9.2007928]
[1736145597331,9.2007928,215.4,215.34,9.2007928]
[1736145597512,32.9776768,215.38,215.32,1.5372]
[1736145597704,9.2007928,215.36,215.32,1.5372]
[1736145597909,9.2007928,215.37,215.32,1.5372]
[1736145598738,23.776884,215.37,215.32,1.5372]
[1736145599314,43.776884,215.38,215.32,10.7379928]
[1736145599518,23.776884,215.37,215.32,10.7379928]
[1736145599731,9.2007928,215.37,215.3,9.2007928]
[1736145601126,9.2007928,215.36,215.29,9.2007928]
[1736145601952,9.2007928,215.33,215.28,2.06]
[1736145602321,9.2007928,215.34,215.28,2.06]
[1736145602628,9.2007928,215.35,215.28,11.2607928]
[1736145602943,23.776884,215.37,215.28,11.2607928]
[1736145603151,32.9776768,215.37,215.3,9.2007928]
[1736145603443,32.9776768,215.37,215.29,9.2007928]
[1736145603645,29.2007928,215.38,215.31,9.2007928]
[1736145603825,7.25474295,215.42,215.32,9.2007928]
[1736145604032,9.2007928,215.41,215.33,9.2007928]
[1736145604424,23.776884,215.4,215.34,9.2007928]
[1736145604954,9.2007928,215.39,215.32,9.2007928]
[1736145606273,9.2007928,215.4,215.33,9.2007928]
[1736145606570,9.2007928,215.42,215.35,9.2007928]
[1736145606857,9.2007928,215.43,215.36,9.2007928]
[1736145607729,9.2007928,215.43,215.35,11.2607928]
[1736145607943,29.2007928,215.42,215.35,11.2607928]
[1736145608456,32.9776768,215.41,215.35,2.06]
[1736145609449,23.776884,215.41,215.35,11.2607928]
[1736145610758,32.9776768,215.41,215.35,2.06]
[1736145612536,23.776884,215.41,215.35,11.2607928]
[1736145613620,32.9776768,215.41,215.35,2.06]
[1736145615652,9.2007928,215.4,215.33,11.2607928]
[1736145615856,32.9776768,215.41,215.34,9.2007928]
[1736145616059,23.776884,215.41,215.34,9.2007928]
[1736145616232,23.776884,215.41,215.36,9.2007928]
[1736145616436,23.776884,215.41,215.35,9.2007928]
[1736145617134,29.2007928,215.42,215.35,9.2007928]
[1736145617338,29.2007928,215.43,215.36,9.2007928]
[1736145618164,17.0532928,215.47,215.4,9.2007928]
[1736145618369,9.2007928,215.46,215.39,9.2007928]
[1736145618654,9.2007928,215.43,215.37,9.2007928]
[1736145619039,29.2007928,215.44,215.37,9.2007928]
[1736145620534,20.0,215.44,215.39,9.2007928]
[1736145620738,20.0,215.44,215.38,9.2007928]
[1736145622371,29.2007928,215.44,215.38,9.2007928]
[1736145623051,7.25474295,215.51,215.41,9.2007928]
[1736145623052,18.85544295,215.51,215.41,9.2007928]
[1736145623256,18.85544295,215.51,215.41,11.2607928]
[1736145623434,7.25474295,215.51,215.41,11.2607928]
[1736145623635,9.2007928,215.48,215.41,11.2607928]
[1736145624869,43.776884,215.51,215.42,9.2007928]
[1736145625044,23.776884,215.49,215.43,9.2007928]
[1736145625248,32.9776768,215.49,215.42,9.2007928]
[1736145625468,9.2007928,215.48,215.41,11.2607928]
[1736145627063,9.2007928,215.49,215.42,9.2007928]
[1736145627247,9.2007928,215.49,215.43,9.2007928]
[1736145627963,23.776884,215.49,215.43,9.2007928]
[1736145629542,9.2007928,215.49,215.43,9.2007928]
[1736145630881,23.776884,215.54,215.43,9.2007928]
[1736145631088,11.5984,215.55,215.43,9.2007928]
[1736145631089,23.776884,215.49,215.43,9.2007928]
[1736145631281,11.5984,215.55,215.45,9.2007928]
[1736145631448,9.2007928,215.52,215.46,9.2007928]
[1736145631774,43.776884,215.52,215.47,9.2007928]
[1736145632149,1.5243,215.56,215.48,2.06]
[1736145632358,9.2007928,215.54,215.48,2.06]
[1736145633171,20.0,215.54,215.48,11.2607928]
[1736145633574,20.0,215.54,215.5,9.2007928]
[1736145636198,9.2007928,215.57,215.5,9.2007928]
[1736145636396,9.2007928,215.58,215.52,9.2007928]
[1736145636854,9.2007928,215.58,215.51,9.2007928]
[1736145637061,9.2007928,215.57,215.51,9.2007928]
[1736145639795,23.776884,215.61,215.52,9.2007928]
[1736145640090,23.776884,215.61,215.51,9.2007928]
[1736145640091,9.2007928,215.58,215.51,9.2007928]
[1736145640291,23.776884,215.61,215.52,9.2007928]
[1736145640461,9.2007928,215.58,215.52,9.2007928]
[1736145640679,9.2007928,215.58,215.51,9.2007928]
[1736145640980,9.2007928,215.57,215.51,9.2007928]
[1736145641184,9.2007928,215.56,215.49,9.2007928]
[1736145642798,9.2007928,215.54,215.48,1.6559]
[1736145642964,48.3987712,215.6,215.49,2.06]
[1736145642965,9.2007928,215.53,215.49,2.06]
[1736145643172,9.2007928,215.53,215.48,2.06]
[1736145644110,9.2007928,215.52,215.48,2.06]
[1736145645502,9.2007928,215.53,215.48,2.06]
[1736145645674,9.2007928,215.51,215.45,9.2007928]
[1736145645876,9.2007928,215.51,215.46,2.06]
[1736145646392,9.2007928,215.51,215.45,9.2007928]
[1736145646597,9.2007928,215.49,215.43,1.5656]
[1736145646802,9.2007928,215.48,215.43,1.5656]
[1736145648989,9.2007928,215.47,215.43,1.5656]
[1736145649476,9.2007928,215.48,215.43,1.5656]
[1736145651818,9.2007928,215.47,215.43,1.5656]
[1736145652601,9.2007928,215.47,215.42,2.06]
[1736145652998,9.2007928,215.45,215.39,9.2007928]
[1736145653197,9.2007928,215.45,215.39,11.2607928]
[1736145653615,9.2007928,215.44,215.39,2.06]
[1736145653800,9.2007928,215.44,215.38,10.8538928]
[1736145654528,9.2007928,215.45,215.39,9.2007928]
[1736145654833,9.2007928,215.45,215.38,10.8538928]
[1736145654834,9.2007928,215.44,215.38,10.8538928]
[1736145655012,29.2007928,215.45,215.39,9.2007928]
[1736145656695,23.776884,215.44,215.38,10.8538928]
[1736145656896,32.9776768,215.44,215.38,10.8538928]
[1736145658607,9.2007928,215.43,215.38,1.6531]
[1736145661103,32.9776768,215.44,215.38,10.8538928]
[1736145661304,9.2007928,215.43,215.38,1.6531]
[1736145663130,9.2007928,215.44,215.38,10.8538928]
[1736145666736,9.2007928,215.43,215.38,1.6531]
[1736145669041,9.2007928,215.43,215.38,10.8538928]
[1736145670332,20.0,215.46,215.39,9.2007928]
[1736145670541,29.2007928,215.46,215.4,9.2007928]
[1736145670839,9.2007928,215.45,215.39,9.2007928]
[1736145671734,9.2007928,215.44,215.38,10.8538928]
[1736145672213,9.2007928,215.44,215.38,1.6531]
[1736145672616,9.2007928,215.43,215.38,1.6531]
[1736145674624,56.8031712,215.49,215.38,1.6531]
[1736145674625,9.2007928,215.41,215.38,1.6531]
[1736145675244,9.2007928,215.42,215.38,1.6531]
[1736145677453,9.2007928,215.41,215.35,9.2007928]
[1736145677626,9.2007928,215.38,215.32,1.6246]
[1736145677832,9.2007928,215.38,215.33,2.06]
[1736145678018,9.2007928,215.37,215.32,1.6246]
[1736145678338,9.2007928,215.35,215.28,2.06]
[1736145678531,9.2007928,215.36,215.32,0.358117]
[1736145678731,9.2007928,215.36,215.3,9.2007928]
[1736145678935,9.2007928,215.36,215.31,0.358117]
[1736145679139,9.2007928,215.35,215.29,11.2607928]
[1736145683163,9.2007928,215.33,215.27,1.5901]
[1736145683374,9.2007928,215.33,215.27,12.8508928]
[1736145683535,9.2007928,215.33,215.28,9.2007928]
[1736145685266,9.2007928,215.33,215.27,12.8508928]
[1736145685647,9.2007928,215.33,215.27,10.7908928]
[1736145685946,9.2007928,215.33,215.27,12.8508928]
[1736145686156,9.2007928,215.33,215.27,3.6501]
[1736145686387,9.2007928,215.33,215.27,12.8508928]
[1736145687041,9.2007928,215.33,215.27,10.7908928]
[1736145688575,9.2007928,215.32,215.27,1.5901]
[1736145689375,9.2007928,215.33,215.27,10.7908928]
[1736145689971,9.2007928,215.3,215.27,1.5901]
[1736145690272,9.2007928,215.31,215.27,1.5901]
[1736145691668,9.2007928,215.31,215.24,11.2607928]
[1736145692054,9.2007928,215.3,215.23,11.2607928]
[1736145692875,9.2007928,215.3,215.23,9.2007928]
[1736145693745,9.2007928,215.3,215.24,9.2007928]
[1736145694072,9.2007928,215.31,215.25,9.2007928]
[1736145698685,9.2007928,215.32,215.25,9.2007928]
[1736145698854,20.0,215.37,215.28,9.2007928]
[1736145699177,20.0,215.33,215.3,9.2007928]
[1736145701185,11.6067,215.4,215.31,9.2007928]
[1736145701360,9.2007928,215.38,215.31,9.2007928]
[1736145701566,20.0,215.35,215.31,9.2007928]
[1736145702082,9.2007928,215.4,215.34,9.2007928]
[1736145702288,20.0,215.37,215.34,9.2007928]
[1736145702588,9.2007928,215.4,215.34,9.2007928]
[1736145702768,9.2007928,215.4,215.33,9.2007928]
[1736145703179,20.0,215.37,215.33,9.2007928]
[1736145704284,29.2007928,215.39,215.33,9.2007928]
[1736145705586,20.0,215.37,215.33,9.2007928]
[1736145707103,29.2007928,215.39,215.33,9.2007928]
[1736145709017,29.2007928,215.39,215.32,9.2007928]
[1736145713706,9.2007928,215.38,215.32,9.2007928]
[1736145714180,9.2007928,215.37,215.29,3.6427]
[1736145714506,9.2007928,215.37,215.3,9.2007928]
[1736145715605,9.2007928,215.36,215.3,9.2007928]
[1736145717602,29.2007928,215.37,215.3,9.2007928]
[1736145719498,9.2007928,215.36,215.3,9.2007928]
[1736145720322,9.2007928,215.34,215.29,1.5827]
[1736145722016,9.2007928,215.35,215.29,1.5827]
[1736145722239,9.2007928,215.35,215.29,10.7834928]
[1736145723015,9.2007928,215.36,215.29,10.7834928]
[1736145725622,9.2007928,215.35,215.29,10.7834928]
[1736145727635,9.2007928,215.36,215.29,10.7834928]
[1736145728423,9.2007928,215.35,215.29,10.7834928]
[1736145730426,9.2007928,215.36,215.29,10.7834928]
[1736145734697,23.776884,215.4,215.29,10.7834928]
[1736145734920,9.2007928,215.37,215.31,9.2007928]
[1736145735140,9.2007928,215.36,215.3,9.2007928]
[1736145736254,9.2007928,215.36,215.29,10.7834928]
[1736145738038,9.2007928,215.36,215.3,9.2007928]
[1736145739135,30.99096856,215.42,215.29,1.5827]
[1736145739343,9.2007928,215.41,215.34,9.2007928]
[1736145739509,28.58606136,215.42,215.35,9.2007928]
[1736145740419,21.33131841,215.42,215.35,9.2007928]
[1736145740737,12.13052561,215.42,215.35,9.2007928]
[1736145740905,9.2007928,215.41,215.35,9.2007928]
[1736145741111,9.2007928,215.41,215.34,9.2007928]
[1736145742245,9.2007928,215.4,215.33,9.2007928]
[1736145742935,29.2007928,215.39,215.33,9.2007928]
[1736145743849,29.2007928,215.39,215.32,9.2007928]
[1736145744166,29.2007928,215.39,215.3,9.2007928]
[1736145744167,9.2007928,215.36,215.3,9.2007928]
[1736145746744,9.2007928,215.37,215.3,9.2007928]
[1736145749151,9.2007928,215.37,215.29,1.5827]
[1736145749353,9.2007928,215.36,215.29,10.7834928]
[1736145752049,9.2007928,215.36,215.3,9.2007928]
[1736145752844,9.2007928,215.37,215.3,9.2007928]
[1736145755758,9.2007928,215.38,215.31,9.2007928]
[1736145757530,20.0,215.39,215.33,9.2007928]
[1736145758742,12.13052561,215.42,215.34,9.2007928]
[1736145758927,9.2007928,215.4,215.34,9.2007928]
[1736145759128,9.2007928,215.41,215.34,9.2007928]
[1736145761360,12.13052561,215.42,215.35,9.2007928]
[1736145761655,9.2007928,215.41,215.35,9.2007928]
[1736145762257,21.33131841,215.42,215.35,9.2007928]
[1736145762662,21.33131841,215.42,215.3,0.69653358]
[1736145762852,21.33131841,215.42,215.36,9.2007928]
[1736145763360,21.33131841,215.42,215.35,9.2007928]
[1736145765972,12.13052561,215.42,215.36,9.2007928]
[1736145766163,12.13052561,215.42,215.37,9.2007928]
[1736145769076,12.13052561,215.42,215.39,9.2007928]
[1736145769241,12.13052561,215.42,215.4,9.2007928]
[1736145769600,12.13052561,215.42,215.41,9.2007928]
[1736145770876,12.13052561,215.42,215.4,9.2007928]
[1736145772185,12.13052561,215.42,215.39,9.2007928]
[1736145773382,9.2007928,215.46,215.39,9.2007928]
[1736145773983,13.43155515,215.52,215.39,9.2007928]
[1736145773984,9.2007928,215.45,215.39,9.2007928]
[1736145774355,9.2007928,215.46,215.39,9.2007928]
[1736145775985,9.2007928,215.46,215.33,56.7372]
[1736145775986,20.0,215.37,215.24,15.14719244]
[1736145776296,9.2007928,215.34,215.27,9.2007928]
[1736145776451,25.836884,215.41,215.28,9.2007928]
[1736145776652,9.2007928,215.36,215.29,9.2007928]
[1736145776874,9.2007928,215.36,215.28,9.2007928]
[1736145777086,9.2007928,215.34,215.27,9.2007928]
[1736145777260,9.2007928,215.35,215.28,9.2007928]
[1736145778891,9.2007928,215.34,215.29,312.0]
[1736145779574,9.2007928,215.33,215.29,312.0]
[1736145780490,14.1264318,215.39,215.32,9.2007928]
[1736145780677,23.3272246,215.39,215.33,9.2007928]
[1736145780877,14.1264318,215.39,215.33,9.2007928]
[1736145781798,14.1264318,215.39,215.34,9.2007928]
[1736145783600,14.1264318,215.39,215.34,321.2007928]
[1736145783780,14.1264318,215.39,215.34,9.2007928]
[1736145784396,14.1264318,215.39,215.33,9.2007928]
[1736145785902,23.3272246,215.39,215.33,9.2007928]
[1736145786063,9.2007928,215.38,215.31,1.5315]
[1736145786406,9.2007928,215.37,215.31,1.5315]
[1736145787303,9.2007928,215.36,215.31,1.5315]
[1736145787793,9.2007928,215.36,215.29,9.2007928]
[1736145788001,9.2007928,215.35,215.27,3.6771]
[1736145788168,14.1264318,215.39,215.27,3.6771]
[1736145788169,9.2007928,215.36,215.29,9.2007928]
[1736145788363,14.1264318,215.39,215.3,9.2007928]
[1736145788568,9.2007928,215.37,215.3,9.2007928]
[1736145789271,23.3272246,215.39,215.33,9.2007928]